fUSD/lending_fUSD_20260108
["ID","MTS","AMOUNT","RATE_DAILY","PERIOD"]
[400804950,1767834070114,-5875.88144611,0.00014234,2]
[400804951,1767834073125,-1000.0,0.00014144,2]
[400804952,1767834073174,-8000.01,0.00014234,2]
[400804953,1767834073271,-10000.01,0.00014234,2]
[400804954,1767834091575,-198.1434,0.00014144,2]
[400804955,1767834094100,2718.716,0.00013959,2]
[400804956,1767834094139,174.361,0.00013959,2]
[400804959,1767834102238,153.35447408,0.00014144,2]
[400804963,1767834105847,153.35447408,0.00014144,2]
[400804973,1767834183240,-4453.7511901,0.00014182,2]
[400804974,1767834183469,-1092.5076198,0.00014182,2]
[400804975,1767834203153,500.0,0.00013969,2]
[400804976,1767834203342,500.0,0.00014024,2]
[400804977,1767834203389,150.0,0.00013969,2]
[400804978,1767834203431,500.0,0.00013969,2]
[400804979,1767834203525,500.0,0.00014079,2]
[400804980,1767834203565,150.0,0.00014024,2]
[400804981,1767834203606,500.0,0.00014024,2]
[400804982,1767834203694,200.0,0.00014079,2]
[400804983,1767834203732,500.0,0.00014133,2]
[400804984,1767834203777,500.0,0.00014079,2]
[400804985,1767834203890,500.0,0.00014133,2]
[400804986,1767834204041,150.0,0.00013969,2]
[400804987,1767834204213,239.75412661,0.00014024,2]
[400804988,1767834204997,150.0,0.00013969,2]
[400804989,1767834205100,603.0,0.00013969,2]
[400804990,1767834205282,603.0,0.00014024,2]
[400804991,1767834205439,603.0,0.00014079,2]
[400804992,1767834205606,603.0,0.00014133,2]
[400804993,1767834207153,363.24063379,0.00013969,2]
[400804994,1767834207178,136.75936621,0.00013969,2]
[400804995,1767834207230,-500.0,0.00014188,2]
[400804996,1767834207253,-189.01438501,0.00014188,2]
[400804997,1767834207289,500.0,0.00014024,2]
[400804998,1767834207326,960.0,0.00013969,2]
[400804999,1767834207388,500.0,0.00014079,2]
[400805000,1767834207430,960.0,0.00014024,2]
[400805001,1767834207487,150.0,0.00013969,2]
[400805002,1767834207524,500.0,0.00014133,2]
[400805003,1767834207563,500.0,0.00013969,2]
[400805004,1767834207606,960.0,0.00014079,2]
[400805005,1767834207663,150.0,0.00014024,2]
[400805006,1767834207717,500.0,0.00014024,2]
[400805007,1767834207757,960.0,0.00014133,2]
[400805008,1767834207814,150.0,0.00014079,2]
[400805010,1767834207915,500.0,0.00014079,2]
[400805011,1767834208150,150.0,0.00013969,2]
[400805012,1767834208329,150.0,0.00014024,2]
[400805014,1767834208373,-192.03704288,0.00014188,2]
[400805015,1767834208500,150.0,0.00014079,2]
[400805016,1767834208540,150.0,0.00013969,2]
[400805017,1767834208665,179.07668943,0.00014133,2]
[400805018,1767834208738,150.0,0.00014024,2]
[400805020,1767834208907,150.0,0.00014079,2]
[400805021,1767834209061,150.0,0.00014133,2]
[400805026,1767834210493,150.0,0.00013969,2]
[400805027,1767834210559,150.0,0.00014024,2]
[400805028,1767834210608,150.0,0.00013969,2]
[400805029,1767834210652,150.0,0.00014079,2]
[400805030,1767834210711,150.0,0.00014024,2]
[400805031,1767834210751,152.36175589,0.00014133,2]
[400805032,1767834210787,216.79854945,0.00014079,2]
[400805033,1767834210893,225.01363902,0.00013969,2]
[400805034,1767834210917,274.98636098,0.00013969,2]
[400805035,1767834210958,500.0,0.00014024,2]
[400805036,1767834211002,500.0,0.00013969,2]
[400805037,1767834211057,576.96699474,0.00014079,2]
[400805038,1767834211090,500.0,0.00014024,2]
[400805039,1767834211147,499.84469649,0.00014079,2]
[400805040,1767834211462,150.51985385,0.00013969,2]
[400805041,1767834212603,-118.94857211,0.00014188,2]
[400805042,1767834212626,-174.36336263,0.00014188,2]
[400805043,1767834213886,-428.63663737,0.00014188,2]
[400805044,1767834213916,-500.0,0.00014188,2]
[400805045,1767834213948,-960.0,0.00014188,2]
[400805046,1767834219407,1000.0,0.00014144,2]
[400805047,1767834242289,153.35447402,0.00014144,2]
[400805049,1767834255824,153.35447402,0.00014144,2]
[400805050,1767834263252,166.66,0.00013115,2]
[400805051,1767834263478,166.66,0.00013391,2]
[400805052,1767834263683,166.66,0.00013667,2]
[400805053,1767834263931,166.66,0.00013943,2]
[400805063,1767834305977,4249.38777722,0.00013849,2]
[400805064,1767834306007,10000.01,0.00013849,2]
[400805065,1767834306034,10000.01,0.00013849,2]
[400805066,1767834306061,10000.01,0.00013849,2]
[400805067,1767834306091,10000.01,0.00013849,2]
[400805068,1767834306116,8428.68222278,0.00013849,2]
[400805072,1767834316450,150.0,0.00013969,2]
[400805073,1767834316491,500.0,0.00013969,2]
[400805074,1767834316592,150.0,0.00014024,2]
[400805075,1767834316640,500.0,0.00014024,2]
[400805076,1767834316775,500.0,0.00014079,2]
[400805077,1767834316814,150.0,0.00014079,2]
[400805078,1767834316856,1130.0,0.00013969,2]
[400805079,1767834316934,500.0,0.00014133,2]
[400805080,1767834316995,178.38671314,0.00014133,2]
[400805081,1767834317039,1130.0,0.00014024,2]
[400805082,1767834317165,1130.0,0.00014079,2]
[400805083,1767834317526,1130.0,0.00014133,2]
[400805084,1767834318077,500.0,0.00013969,2]
[400805085,1767834318324,500.0,0.00014024,2]
[400805086,1767834318388,500.0,0.00013969,2]
[400805087,1767834318622,500.0,0.00014079,2]
[400805088,1767834318661,500.0,0.00014024,2]
[400805089,1767834318728,351.62328686,0.00014133,2]
[400805090,1767834318751,148.37671314,0.00014133,2]
[400805091,1767834318796,620.70051101,0.00014079,2]
[400805092,1767834319518,150.0,0.00013969,2]
[400805093,1767834319571,500.0,0.00013969,2]
[400805094,1767834319708,500.0,0.00014024,2]
[400805095,1767834319863,350.0,0.00014079,2]
[400805096,1767834319908,500.0,0.00013969,2]
[400805097,1767834319948,150.0,0.00013969,2]
[400805098,1767834320032,500.0,0.00014024,2]
[400805099,1767834320162,500.0,0.00013969,2]
[400805100,1767834320208,500.0,0.00014079,2]
[400805101,1767834320320,500.0,0.00014024,2]
[400805102,1767834320374,500.0,0.00014133,2]
[400805103,1767834320568,500.0,0.00014079,2]
[400805104,1767834321349,500.0,0.00014133,2]
[400805126,1767834398055,-300.0,0.00013969,2]
[400805127,1767834399697,-200.0,0.00013969,2]
[400805128,1767834399719,-118.00937545,0.00013969,2]
[400805129,1767834402395,-207.44371838,0.00013969,2]
[400805130,1767834404623,-174.54690617,0.00013969,2]
[400805131,1767834404646,-150.0,0.00013969,2]
[400805132,1767834404669,-34.21779509,0.00014024,2]
[400805134,1767834406025,-237.95861467,0.00014024,2]
[400805135,1767834407977,-208.2668177,0.00014024,2]
[400805136,1767834409510,-19.55677254,0.00014024,2]
[400805137,1767834409539,-145.11322746,0.00014024,2]
[400805138,1767834412260,-318.99052199,0.00014024,2]
[400805148,1767834430716,-35.89625055,0.00014024,2]
[400805149,1767834430748,-500.0,0.00014079,2]
[400805150,1767834430779,-500.0,0.00014079,2]
[400805151,1767834430811,-321.89567543,0.00014079,2]
[400805152,1767834430842,-531.58151617,0.00014133,2]
[400805153,1767834430873,-406.3800823,0.00014133,2]
[400805154,1767834430905,-300.0,0.00014143,2]
[400805161,1767834446852,-166.66,0.00013969,2]
[400805162,1767834449808,-199.97442301,0.00013969,2]
[400805164,1767834451347,-133.36557699,0.00013969,2]
[400805165,1767834451369,-150.85214258,0.00014024,2]
[400805174,1767834463601,150.0,0.00013348,2]
[400805185,1767834492316,-349.14785742,0.00014024,2]
[400805187,1767834492702,-500.0,0.00014079,2]
[400805188,1767834492731,-500.0,0.00014133,2]
[400805189,1767834492760,-300.0,0.00014143,2]
[400805192,1767834493516,-351.97246794,0.00014143,2]
[400805196,1767834495017,-621.67660694,0.00014143,2]
[400805199,1767834496561,-242.0811956,0.00014143,2]
[400805200,1767834498098,-203.43128444,0.00014143,2]
[400805201,1767834501197,-534.14261499,0.00014143,2]
[400805202,1767834503757,-212.515,0.00014143,2]
[400805203,1767834505202,-500.0,0.00014143,2]
[400805204,1767834507266,-546.10582028,0.00014143,2]
[400805205,1767834508903,153.35447402,0.00014044,2]
[400805206,1767834509145,-300.0,0.00014143,2]
[400805207,1767834510682,-264.0,0.00014143,2]
[400805208,1767834512581,153.35447402,0.00014044,2]
[400805209,1767834516119,368.11595195,0.00014142,2]
[400805210,1767834516164,500.0,0.00014142,2]
[400805211,1767834516200,278.95118323,0.00014142,2]
[400805212,1767834516742,500.0,0.00014142,2]
[400805213,1767834516903,500.0,0.00014142,2]
[400805214,1767834517049,171.41577059,0.00014142,2]
[400805215,1767834517152,230.20841421,0.00014142,2]
[400805216,1767834517849,500.0,0.00014142,2]
[400805217,1767834517889,500.0,0.00014142,2]
[400805218,1767834518182,500.0,0.00013969,2]
[400805219,1767834518265,500.0,0.00014024,2]
[400805220,1767834518314,500.0,0.00014079,2]
[400805221,1767834518363,500.0,0.00014133,2]
[400805222,1767834520023,531.27888011,0.00014142,2]
[400805223,1767834520065,315.03513703,0.00014142,2]
[400805224,1767834520089,184.96486297,0.00014142,2]
[400805225,1767834520130,500.0,0.00014142,2]
[400805226,1767834520188,500.0,0.00014142,2]
[400805227,1767834520247,500.0,0.00014142,2]
[400805228,1767834520289,500.0,0.00014142,2]
[400805229,1767834520358,500.0,0.00014142,2]
[400805230,1767834520442,245.90111696,0.00014142,2]
[400805231,1767834520508,500.0,0.00014142,2]
[400805232,1767834520587,500.0,0.00014142,2]
[400805233,1767834520638,500.0,0.00014142,2]
[400805234,1767834520691,500.0,0.00014142,2]
[400805235,1767834520752,500.0,0.00014142,2]
[400805236,1767834520804,224.23308626,0.00014142,2]
[400805237,1767834520864,500.0,0.00014142,2]
[400805238,1767834520918,500.0,0.00014142,2]
[400805239,1767834520974,500.0,0.00014142,2]
[400805240,1767834521025,500.0,0.00014142,2]
[400805241,1767834521087,500.0,0.00014142,2]
[400805242,1767834521143,500.0,0.00014142,2]
[400805243,1767834521192,500.0,0.00014142,2]
[400805244,1767834521244,500.0,0.00014142,2]
[400805245,1767834521293,344.91093381,0.00014142,2]
[400805246,1767834530840,-150.0,0.00013969,2]
[400805247,1767834530862,-276.91222496,0.00013969,2]
[400805248,1767834530883,-45.79567597,0.00013969,2]
[400805249,1767834532916,-178.1886623,0.00013969,2]
[400805250,1767834536247,-276.01566173,0.00013969,2]
[400805251,1767834536270,-117.53524133,0.00014024,2]
[400805252,1767834538217,-32.46475867,0.00014024,2]
[400805253,1767834538241,-170.91286775,0.00014024,2]
[400805254,1767834539849,-300.02557716,0.00014024,2]
[400805308,1767834632169,-150.0,0.00013969,2]
[400805309,1767834632179,-942.0,0.00013969,2]
[400805310,1767834632189,-150.0,0.00013969,2]
[400805311,1767834632198,-29.06155509,0.00014024,2]
[400805312,1767834632208,-150.0,0.00014024,2]
[400805313,1767834632218,-933.29161499,0.00014024,2]
[400805314,1767834632230,-8.70838501,0.00014024,2]
[400805315,1767834632240,-266.0,0.00014024,2]
[400805316,1767834632250,-300.0,0.00014043,2]
[400805317,1767834632261,-1018.95131378,0.00014043,2]
[400805318,1767834632275,-181.04868622,0.00014043,2]
[400805319,1767834632285,-109.96737077,0.00014043,2]
[400805320,1767834632297,-190.03262923,0.00014043,2]
[400805321,1767834632306,-205.50324843,0.00014044,2]
[400805322,1767834632318,-631.01761925,0.00014044,2]
[400805323,1767834632327,-2304.85106951,0.00014044,2]
[400805331,1767834638172,-1667.95075,0.00014044,2]
[400805332,1767834638300,-8813.6182897,0.00014044,2]
[400805333,1767834638312,-153.35447402,0.00014044,2]
[400805334,1767834638325,-264.0,0.00014079,2]
[400805335,1767834638334,-500.0,0.00014079,2]
[400805336,1767834638345,-150.0,0.00014079,2]
[400805337,1767834638356,-942.0,0.00014079,2]
[400805338,1767834638366,-13375.62913866,0.00014133,2]
[400805339,1767834638375,-500.0,0.00014133,2]
[400805340,1767834638385,-150.0,0.00014133,2]
[400805341,1767834638397,-942.0,0.00014133,2]
[400805342,1767834638407,-150.0,0.00014141,2]
[400805343,1767834638418,-155.08906619,0.00014142,2]
[400805345,1767834638429,-500.0,0.00014142,2]
[400805347,1767834638440,-500.0,0.00014142,2]
[400805349,1767834638452,-500.0,0.00014142,2]
[400805351,1767834638463,-500.0,0.00014142,2]
[400805353,1767834638474,-500.0,0.00014142,2]
[400805355,1767834638485,-500.0,0.00014142,2]
[400805357,1767834638495,-500.0,0.00014142,2]
[400805359,1767834638505,-500.0,0.00014142,2]
[400805361,1767834638516,-500.0,0.00014142,2]
[400805364,1767834638527,-500.0,0.00014142,2]
[400805365,1767834638537,-500.0,0.00014142,2]
[400805368,1767834638548,-500.0,0.00014142,2]
[400805369,1767834638562,-500.0,0.00014142,2]
[400805372,1767834638573,-499.99999999,0.00014142,2]
[400805374,1767834638585,-500.0,0.00014142,2]
[400805376,1767834638596,-500.0,0.00014142,2]
[400805378,1767834638607,-500.0,0.00014142,2]
[400805380,1767834638617,-300.0,0.00014142,2]
[400805382,1767834638628,-200.0,0.00014143,2]
[400805384,1767834638640,-54429.27736373,0.00014143,2]
[400805386,1767834638654,-467.585,0.00014143,2]
[400805389,1767834638671,-328.88666808,0.00014143,2]
[400805391,1767834638688,-940998.325978,0.00014143,2]
[400805393,1767834638702,-13916.950115,0.00014144,2]
[400805395,1767834638713,-1000.0,0.00014144,2]
[400805397,1767834638724,-315.2526,0.00014144,2]
[400805400,1767834638734,-500.0,0.00014188,2]
[400805402,1767834638743,-500.0,0.00014188,2]
[400805404,1767834638753,-500.0,0.00014188,2]
[400805406,1767834638763,-150.0,0.00014188,2]
[400805408,1767834638772,-942.0,0.00014188,2]
[400805409,1767834638782,-166.66,0.00014219,2]
[400805411,1767834638792,-200.0,0.00014234,2]
[400805414,1767834638802,-500.0,0.00014236,2]
[400805416,1767834638812,-151.0,0.00014236,2]
[400805418,1767834638821,-151.0,0.00014236,2]
[400805420,1767834638831,-151.0,0.00014236,2]
[400805422,1767834638842,-151.0,0.00014236,2]
[400805424,1767834638851,-151.0,0.00014236,2]
[400805426,1767834638861,-151.0,0.00014236,2]
[400805428,1767834638870,-151.0,0.00014236,2]
[400805430,1767834638880,-151.0,0.00014236,2]
[400805432,1767834638889,-151.0,0.00014236,2]
[400805434,1767834638899,-151.0,0.00014236,2]
[400805436,1767834638909,-151.0,0.00014236,2]
[400805438,1767834638919,-960.0,0.00014243,2]
[400805440,1767834638928,-500.0,0.00014243,2]
[400805442,1767834638938,-500.0,0.00014243,2]
[400805444,1767834638948,-500.0,0.00014243,2]
[400805445,1767834638957,-250.0,0.00014243,2]
[400805448,1767834638967,-942.0,0.00014243,2]
[400805450,1767834638978,-500.0,0.00014243,2]
[400805452,1767834638988,-500.0,0.00014243,2]
[400805454,1767834638998,-500.0,0.00014243,2]
[400805456,1767834639007,-500.0,0.00014243,2]
[400805458,1767834639017,-500.0,0.00014243,2]
[400805460,1767834639026,-500.0,0.00014243,2]
[400805462,1767834639035,-500.0,0.00014243,2]
[400805464,1767834639045,-500.0,0.00014243,2]
[400805465,1767834639054,-500.0,0.00014243,2]
[400805468,1767834639064,-500.0,0.00014243,2]
[400805469,1767834639078,-500.0,0.00014243,2]
[400805471,1767834639087,-500.0,0.00014243,2]
[400805473,1767834639097,-500.0,0.00014243,2]
[400805475,1767834639107,-500.0,0.00014243,2]
[400805478,1767834639119,-500.0,0.00014243,2]
[400805480,1767834639128,-500.0,0.00014243,2]
[400805482,1767834639138,-500.0,0.00014243,2]
[400805483,1767834639149,-529.68631152,0.00014243,2]
[400805485,1767834639159,-500.0,0.00014243,2]
[400805488,1767834639169,-513.96214798,0.00014243,2]
[400805489,1767834639179,-500.0,0.00014243,2]
[400805491,1767834639188,-500.0,0.00014243,2]
[400805493,1767834639198,-179.59986831,0.00014243,2]
[400805495,1767834639207,-1360.09,0.00014243,2]
[400805497,1767834639216,-500.0,0.00014243,2]
[400805499,1767834639226,-500.0,0.00014243,2]
[400805501,1767834639235,-319.8416144,0.00014243,2]
[400805504,1767834639245,-500.0,0.00014243,2]
[400805506,1767834639254,-500.0,0.00014243,2]
[400805508,1767834639263,-500.0,0.00014243,2]
[400805510,1767834639272,-500.0,0.00014243,2]
[400805512,1767834639282,-500.0,0.00014243,2]
[400805514,1767834639291,-500.0,0.00014243,2]
[400805516,1767834639299,-500.0,0.00014243,2]
[400805518,1767834639309,-500.0,0.00014243,2]
[400805520,1767834639319,-9999.99,0.00014243,2]
[400805522,1767834639328,-33574.8602,0.00014244,2]
[400805524,1767834639337,-2268.8436,0.00014244,2]
[400805526,1767834639346,-696.85,0.00014244,2]
[400805527,1767834639355,-150.99,0.00014244,2]
[400805528,1767834639364,-1500.0,0.00014245,2]
[400805529,1767834639373,-423.57,0.00014245,2]
[400805530,1767834639382,-299.99,0.00014245,2]
[400805531,1767834639391,-200.0,0.00014284,2]
[400805532,1767834639400,-960.0,0.00014298,2]
[400805533,1767834639409,-500.0,0.00014298,2]
[400805534,1767834639418,-500.0,0.00014298,2]
[400805535,1767834639428,-500.0,0.00014298,2]
[400805536,1767834639437,-942.0,0.00014298,2]
[400805537,1767834639446,-1429.42,0.00014325,2]
[400805538,1767834639455,-500.0,0.0001433,2]
[400805539,1767834639464,-500.0,0.00014343,2]
[400805540,1767834639474,-500.0,0.00014343,2]
[400805541,1767834639483,-500.0,0.00014343,2]
[400805542,1767834639493,-500.0,0.00014343,2]
[400805544,1767834639503,-960.0,0.00014353,2]
[400805546,1767834639512,-500.0,0.00014353,2]
[400805548,1767834639521,-500.0,0.00014353,2]
[400805550,1767834639530,-500.0,0.00014353,2]
[400805552,1767834639539,-942.0,0.00014353,2]
[400805554,1767834639549,-200.0,0.00014376,2]
[400805556,1767834639558,-960.0,0.00014407,2]
[400805558,1767834639568,-500.0,0.00014407,2]
[400805560,1767834639577,-500.0,0.00014407,2]
[400805562,1767834639586,-500.0,0.00014407,2]
[400805564,1767834639596,-942.0,0.00014407,2]
[400805566,1767834639605,-200.0,0.00014427,2]
[400805568,1767834639617,-164.96,0.00014447,2]
[400805570,1767834639626,-960.0,0.00014462,2]
[400805572,1767834639635,-500.0,0.00014462,2]
[400805574,1767834639644,-618.0,0.00014462,2]
[400805576,1767834639657,-500.0,0.00014462,2]
[400805578,1767834639666,-942.0,0.00014462,2]
[400805580,1767834639675,-12786.42010912,0.00014472,2]
[400805582,1767834639685,-166.66,0.00014495,2]
[400805584,1767834639695,-960.0,0.00014517,2]
[400805586,1767834639706,-240.52563849,0.00014517,2]
[400805588,1767834639716,-500.0,0.00014517,2]
[400805590,1767834639725,-942.0,0.00014517,2]
[400805592,1767834639735,-522.46913605,0.00014517,2]
[400805594,1767834639744,-1360.09,0.00014517,2]
[400805596,1767834639753,-200.0,0.0001452,2]
[400805598,1767834639762,-500.0,0.00014544,2]
[400805600,1767834639771,-500.0,0.00014544,2]
[400805602,1767834639781,-500.0,0.00014544,2]
[400805604,1767834639790,-506.42348911,0.00014544,2]
[400805606,1767834639799,-500.0,0.00014544,2]
[400805608,1767834639808,-500.0,0.00014544,2]
[400805610,1767834639818,-500.0,0.00014544,2]
[400805612,1767834639827,-500.0,0.00014544,2]
[400805614,1767834639836,-500.0,0.00014544,2]
[400805616,1767834639845,-508.99338834,0.00014544,2]
[400805618,1767834639854,-500.0,0.00014544,2]
[400805620,1767834639864,-500.0,0.00014544,2]
[400805622,1767834639873,-500.0,0.00014544,2]
[400805624,1767834639883,-419.33594592,0.00014544,2]
[400805626,1767834639893,-500.0,0.00014544,2]
[400805628,1767834639902,-500.0,0.00014544,2]
[400805631,1767834639912,-500.0,0.00014544,2]
[400805633,1767834639921,-500.0,0.00014544,2]
[400805635,1767834639930,-13916.95011498,0.00014561,2]
[400805672,1767834640256,-960.0,0.00014572,2]
[400805674,1767834640266,-500.0,0.00014572,2]
[400805676,1767834640275,-942.0,0.00014572,2]
[400805678,1767834640284,-200.0,0.00014572,2]
[400805680,1767834640294,-960.0,0.00014627,2]
[400805682,1767834640304,-500.0,0.00014627,2]
[400805684,1767834640313,-942.0,0.00014627,2]
[400805687,1767834640324,-500.0,0.00014645,2]
[400805688,1767834640333,-500.0,0.00014645,2]
[400805690,1767834640342,-200.0,0.00014665,2]
[400805692,1767834640352,-960.0,0.00014681,2]
[400805695,1767834640361,-500.0,0.00014681,2]
[400805697,1767834640371,-942.0,0.00014681,2]
[400805698,1767834640380,-836.52086768,0.00014687,2]
[400805700,1767834640389,-1184.88969418,0.00014712,2]
[400805702,1767834640398,-200.0,0.00014717,2]
[400805705,1767834640409,-33339.72098654,0.00014722,2]
[400805706,1767834640418,-476.58,0.00014723,2]
[400805709,1767834640429,-960.0,0.00014736,2]
[400805710,1767834640440,-240.61097423,0.00014736,2]
[400805712,1767834640450,-942.0,0.00014736,2]
[400805715,1767834640460,-500.0,0.00014784,2]
[400805717,1767834640470,-960.0,0.00014791,2]
[400805719,1767834640479,-942.0,0.00014791,2]
[400805721,1767834640487,-1360.09,0.00014791,2]
[400805723,1767834640497,-150.0,0.00014799,2]
[400805725,1767834640506,-500.0,0.00014799,2]
[400805727,1767834640515,-150.0,0.00014799,2]
[400805729,1767834640525,-500.0,0.00014799,2]
[400805731,1767834640534,-500.0,0.00014799,2]
[400805733,1767834640543,-150.0,0.00014799,2]
[400805735,1767834640552,-500.0,0.00014799,2]
[400805737,1767834640562,-150.0,0.00014799,2]
[400805739,1767834640572,-200.0,0.00014812,2]
[400805741,1767834640582,-960.0,0.00014846,2]
[400805743,1767834640592,-942.0,0.00014846,2]
[400805745,1767834640601,-163.5623375,0.00014854,2]
[400805747,1767834640610,-500.0,0.00014854,2]
[400805749,1767834640620,-150.0,0.00014854,2]
[400805751,1767834640629,-518.0508841,0.00014854,2]
[400805753,1767834640638,-500.0,0.00014854,2]
[400805755,1767834640647,-233.54101023,0.00014854,2]
[400805757,1767834640657,-500.0,0.00014854,2]
[400805759,1767834640666,-150.0,0.00014854,2]
[400805761,1767834640676,-960.0,0.00014901,2]
[400805763,1767834640686,-942.0,0.00014901,2]
[400805765,1767834640695,-12786.42010912,0.00014901,2]
[400805767,1767834640704,-500.0,0.00014909,2]
[400805769,1767834640714,-211.18152955,0.00014909,2]
[400805771,1767834640725,-500.0,0.00014909,2]
[400805773,1767834640734,-500.0,0.00014909,2]
[400805775,1767834640743,-150.0,0.00014909,2]
[400805777,1767834640752,-960.0,0.00014955,2]
[400805778,1767834640762,-942.0,0.00014955,2]
[400805780,1767834640771,-13916.95011498,0.00014979,2]
[400805782,1767834640781,-960.0,0.0001501,2]
[400805784,1767834640790,-942.0,0.0001501,2]
[400805785,1767834640800,-1429.42,0.00015042,2]
[400805787,1767834640809,-960.0,0.00015065,2]
[400805789,1767834640820,-942.0,0.00015065,2]
[400805791,1767834640828,-1360.09,0.00015065,2]
[400805792,1767834640838,-500.0,0.00015068,2]
[400805794,1767834640847,-882.0,0.00015068,2]
[400805797,1767834640857,-500.0,0.00015073,2]
[400805800,1767834640867,-166.49390426,0.00015073,2]
[400805802,1767834640876,-500.0,0.00015073,2]
[400805805,1767834640888,-500.0,0.00015073,2]
[400805808,1767834640899,-500.0,0.00015073,2]
[400805811,1767834640909,-500.0,0.00015073,2]
[400805813,1767834640918,-500.0,0.00015073,2]
[400805814,1767834640927,-500.0,0.00015073,2]
[400805816,1767834640936,-500.0,0.00015073,2]
[400805818,1767834640945,-500.0,0.00015073,2]
[400805820,1767834640954,-500.0,0.00015073,2]
[400805821,1767834640963,-500.0,0.00015073,2]
[400805823,1767834640972,-500.0,0.00015073,2]
[400805825,1767834640982,-500.0,0.00015073,2]
[400805827,1767834640991,-500.0,0.00015073,2]
[400805828,1767834641000,-500.0,0.00015073,2]
[400805830,1767834641010,-500.0,0.00015073,2]
[400805832,1767834641020,-500.0,0.00015073,2]
[400805834,1767834641029,-311.64161933,0.00015073,2]
[400805835,1767834641038,-500.0,0.00015073,2]
[400805837,1767834641048,-500.0,0.00015073,2]
[400805839,1767834641057,-500.0,0.00015073,2]
[400805841,1767834641066,-500.0,0.00015073,2]
[400805843,1767834641081,-500.0,0.00015073,2]
[400805845,1767834641092,-500.0,0.00015073,2]
[400805847,1767834641102,-500.0,0.00015073,2]
[400805848,1767834641113,-500.0,0.00015073,2]
[400805850,1767834641124,-960.0,0.0001512,2]
[400805852,1767834641133,-942.0,0.0001512,2]
[400805854,1767834641142,-521.47480439,0.00015123,2]
[400805855,1767834641153,-999.0,0.00015143,3]
[400805857,1767834641162,-960.0,0.00015174,2]
[400805859,1767834641170,-942.0,0.00015174,2]
[400805861,1767834641180,-966.2212164,0.00015229,2]
[400805862,1767834641189,-151.0,0.00015252,2]
[400805864,1767834641198,-151.0,0.00015252,2]
[400805866,1767834641207,-151.0,0.00015255,2]
[400805868,1767834641217,-151.0,0.00015255,2]
[400805870,1767834641227,-151.0,0.00015256,2]
[400805872,1767834641236,-151.0,0.00015256,2]
[400805873,1767834641247,-151.0,0.00015257,2]
[400805875,1767834641256,-151.0,0.00015257,2]
[400805877,1767834641266,-836.52086768,0.00015329,2]
[400805879,1767834641276,-12786.42010912,0.00015329,2]
[400805880,1767834641285,-619.51019964,0.00015332,2]
[400805882,1767834641294,-1360.09,0.00015339,2]
[400805884,1767834641303,-500.0,0.0001537,2]
[400805886,1767834641313,-420.0,0.00015384,2]
[400805888,1767834641322,-420.0,0.00015384,2]